Cogmind - Beta 12 @@@ ROGUE MODE // 2023.12.29 @ 19:20:07 Player: Ischenous Result: Destroyed by G-34 Mercenary with Small Laser Performance ------------- Evolutions (0) 0 Regions Visited (1) 200 Robots Destroyed (8) 40 Value Destroyed (274) 274 Prototype IDs (0) 0 Alien Tech Used (0) 0 Bonus (0) 0 TOTAL SCORE: 514 Bonus ------- None Cogmind --------- Core Integrity 0/250 Matter 300/300 Energy 232/250 System Corruption 0% Temperature Warm (101) Movement Core (200) Ox3 Location -10/Materials Parts ------- > --- POWER (1) -------- Ion Engine > --- PROPULSION (2) --- (None) > --- UTILITY (2) ------ Small Storage Unit > --- WEAPON (2) ------- Small Laser > --- INVENTORY (8) ---- Wheel Mining Laser Peak State ------------ > --- POWER ------------ Ion Engine > --- PROPULSION ------- Wheel > --- UTILITY ---------- Small Storage Unit > --- WEAPON ----------- Medium Laser Assault Rifle > --- INVENTORY -------- Ion Engine Wheel Small Laser [Rating: 5] Favorites ----------- Power Ion Engine Engine Ion Engine Propulsion Wheel Wheel Wheel Utility Small Storage Unit Storage Small Storage Unit Weapon Medium Laser Energy Gun Medium Laser Ballistic Gun Assault Rifle Build | -11 -10 ------- Run | Jun Mat Slots Evolved . | . . Power . | . . Propulsion . | . . Utility . | . . Weapon . | . . Parts Attached 7 | 5 2 Power 2 | 1 1 Engine 2 | 1 1 Core . | . . Reactor . | . . Propulsion 1 | 1 . Treads . | . . Leg . | . . Wheel 1 | 1 . Hover . | . . Flight . | . . Utility 1 | 1 . Device . | . . Storage 1 | 1 . Processor . | . . Hackware . | . . Protection . | . . Artifact . | . . Weapon 3 | 2 1 Energy Gun 2 | 1 1 Energy Cannon . | . . Ballistic Gun 1 | 1 . Ballistic Cannon . | . . Launcher . | . . Special Weapon . | . . Impact Weapon . | . . Slashing Weapon . | . . Piercing Weapon . | . . Special Melee Weapon . | . . Unidentified Prototypes . | . . Parts Lost 4 | . 4 Power 1 | . 1 Propulsion 1 | . 1 Utility . | . . Weapon 2 | . 2 Highest Loss Streak 3 | . 3 To Critical Strikes . | . . Average Slot Usage (%) 69 | . 69 Engine 13 | . 13 Wheel 14 | . 14 Storage 14 | . 14 Energy Gun 14 | . 14 Ballistic Gun 13 | . 13 Naked Turns . | . . Heaviest Build 14 | 14 14 Greatest Support 10 | 10 10 Greatest Overweight (x) 1 | 1 1 Average Overweight (x) . | . . Largest Inventory Capacity 8 | 8 8 Average Capacity 7 | 7 8 Most Carried 5 | 5 4 Average Carried 3 | 2 3 Final Capacity 8 | 8 8 Final Carried 3 | 3 2 Class Distribution -------------------- 100% | Mutant Dominant Class ---------------- Mutant | -10/Materials Resources | -11 -10 ----------- Run | Jun Mat Matter Collected 310 | 250 60 Remotely . | . . Salvage Created 226 | . 226 Parts 11 | . 11 Haulers Intercepted . | . . Recyclers Shooed . | . . Parts Field Recycled . | . . Retrieved Matter . | . . Parts Self-Destructed . | . . Prevented . | . . Kills | -11 -10 ------- Run | Jun Mat Combat Hostiles Destroyed 6 | . 6 Guns 4 | . 4 AOE 2 | . 2 Classes Destroyed 3 | . 3 Worker 1 | . 1 Mechanic 1 | . 1 Grunt 6 | . 6 Best Kill Streak 4 | . 4 Combat Bots Only 2 | . 2 Max Kills in Single Turn 4 | . 4 Gunslinging . | . . Exploded 2 | . 2 Melee . | . . Uniques/NPCs Destroyed . | . . Combat | -11 -10 -------- Run | Jun Mat Damage Taken 570 | . 570 Core 255 | . 255 Absorbed by Shields . | . . Core Remaining (%) 100 | 100 . Volleys Fired 20 | . 20 Largest 2 | . 2 Hottest 70 | . 70 Shots Fired 36 | . 36 Gun 36 | . 36 Cannon . | . . Launcher . | . . Special . | . . Kinetic 16 | . 16 Thermal 20 | . 20 Explosive . | . . Electromagnetic . | . . Robot Hit Streak 19 | . 19 Robot Miss Streak 3 | . 3 Penetration Max . | . . Secondary Targets 1 | . 1 Max Gunslinging Chain 1 | . 1 Shots Hit Robots 29 | . 29 Core Hits 11 | . 11 Critical Kills 1 | . 1 Critical Parts Destroyed . | . . Critical Strikes 3 | . 3 Burn 2 | . 2 Destroy 1 | . 1 Melee Attacks . | . . Impact . | . . Slashing . | . . Piercing . | . . Sneak Attacks . | . . Combat Hostiles . | . . Follow-up Attacks . | . . Damage Inflicted 839 | . 839 Guns 358 | . 358 Cannons . | . . Explosions 481 | . 481 Melee . | . . Ramming . | . . Kinetic 174 | . 174 Thermal 665 | . 665 Explosive . | . . Electromagnetic . | . . Impact . | . . Slashing . | . . Piercing . | . . Highest Corruption . | . . Average Corruption . | . . Corruption Purged . | . . Corruption Blocked . | . . Overload Shots . | . . Overflow Damage 96 | . 96 Projectiles . | . . Explosions 96 | . 96 Melee . | . . Knockbacks . | . . Impact . | . . Kinetic . | . . Secondary . | . . Self-Inflicted Damage 157 | . 157 Shots 2 | . 2 Rammed . | . . Targets Rammed . | . . Kicked . | . . Crushed . | . . Highest Temperature 123 | . 123 Average Temperature 69 | . 69 Received Heat Transfer 231 | . 231 Siege Activations . | . . Robots Corrupted . | . . Combat Hostiles . | . . Parts Fried . | . . Impact Corruptions . | . . Robots Melted . | . . Combat Hostiles . | . . Parts Melted 2 | . 2 Heat Transferred 1053 | . 1053 Parts Sabotaged . | . . Parts Stolen . | . . Parts Stripped . | . . Power Chain Reactions . | . . Missiles Intercepted . | . . Alert | -11 -10 ------- Run | Jun Mat Peak Influence 218 | . 218 Initial . | . . Average 24 | . 34 Maximum Alert Level 1 | . 1 Low Security (%) 99 | 100 98 Level 1 . | . 1 Level 2 . | . . Level 3 . | . . Level 4 . | . . Level 5 . | . . High Security . | . . Max Security . | . . Squads Dispatched . | . . Investigation . | . . Extermination . | . . Reinforcement . | . . Assault . | . . Garrison . | . . Intercept . | . . Searches Triggered . | . . Construction Impeded . | . . Haulers Reinforced . | . . Active Scanning Responses . | . . Cargo Convoy Interrupts . | . . Stealth | -11 -10 --------- Run | Jun Mat Distress Signals . | . . Communications Jammed . | . . Distress Signals . | . . Times Spotted 8 | . 8 Peak Tracking Total 2 | . 2 Tactical Retreats . | . . Traps | -11 -10 ------- Run | Jun Mat Traps Triggered . | . . Indirectly . | . . Trap Hack Attempts . | . . Triggered . | . . Disarmed . | . . Reprogrammed . | . . Reused . | . . Traps Extracted . | . . Installed . | . . Triggered . | . . Machines | -11 -10 ---------- Run | Jun Mat Machines Disabled 3 | . 3 Max in Single Turn 3 | . 3 Machines Repaired . | . . Machines Sabotaged . | . . Overloaded Fab Kills . | . . Hacking | -11 -10 --------- Run | Jun Mat Machines Accessed . | . . Terminals . | . . Fabricators . | . . Repair Stations . | . . Recycling Units . | . . Scanalyzers . | . . Garrison Access . | . . Total Hacks . | . . Successful . | . . Failed . | . . Catastrophic . | . . Database Lockouts . | . . Manual . | . . Terminals . | . . Fabricators . | . . Repair Stations . | . . Recycling Units . | . . Scanalyzers . | . . Garrison Access . | . . Terminal Hacks . | . . Fabricator Hacks . | . . Repair Station Hacks . | . . Recycling Unit Hacks . | . . Scanalyzer . | . . Garrison Access Hacks . | . . Unauthorized Hacks . | . . Terminals . | . . Fabricators . | . . Repair Stations . | . . Recycling Units . | . . Scanalyzers . | . . Garrison Access . | . . Data Cores Recovered . | . . Used . | . . Hacking Detections . | . . Full Trace Events . | . . Feedback Events . | . . Feedback Blocked . | . . Robot Schematics Acquired . | . . Robots Built . | . . Authchips . | . . Time . | . . Total Robot Build Rating . | . . Part Schematics Acquired . | . . Parts Built . | . . Authchips . | . . Time . | . . Total Part Build Rating . | . . Parts Repaired . | . . Time . | . . Parts Recycled . | . . Recycled Matter . | . . Retrieved Matter . | . . Retrieved Components . | . . Parts Scanalyzed . | . . Part Schematics Acquired . | . . Parts Damaged . | . . Bothacking | -11 -10 ------------ Run | Jun Mat Used RIF Installer . | . . Robots Hacked . | . . Non-combat . | . . Combat . | . . Robot Hacks Applied . | . . Relay Couplers Released . | . . Fabnet Peak Effective % . | . . Robots Rewired . | . . Allies Hacked . | . . Hacks Repelled . | . . Allies | -11 -10 -------- Run | Jun Mat Total Allies . | . . Largest Group . | . . Highest-Rated Group . | . . Highest-Rated Ally . | . . Total Orders . | . . Ally Attacks . | . . Total Damage . | . . Kills . | . . Allies Corrupted . | . . Allies Melted . | . . Intel | -11 -10 ------- Run | Jun Mat Robot Analysis Total . | . . Derelict Logs Recovered . | . . Drone Launches . | . . Drone Recoveries . | . . Exploration | -11 -10 ------------- Run | Jun Mat Turns Passed 272 | 81 191 Spaces Moved 191 | 77 114 Core 9 | 9 . Treads . | . . Legs . | . . Wheels 182 | 68 114 Hover . | . . Flight . | . . Fastest Speed 50 | 50 80 Average Speed 92 | 88 94 Slowest Speed 95 | 95 95 Overloaded Moves . | . . Propulsion Burnouts . | . . Robots Hopped . | . . Cave-ins Triggered . | . . Exploration Rate (%) 10 | 4 16 Regions Visited 1 Branch Regions . Pre-discovered Areas . | . . Known Exits Taken . | . . Unknown Exits Taken 1 | 1 . Scrap Searched . | . . Spaces Dug . | . . Terrain Destroyed 66 | . 66 Melee . | . . Projectile . | . . AOE 66 | . 66 Terrain Rammed . | . . Walls Destroyed . | . . Machines Disabled . | . . Actions | -11 -10 --------- Run | Jun Mat Total 251 | 89 162 Wait 25 | . 25 Move 190 | 76 114 Hop . | . . Pick Up 9 | 8 1 Fast Attach . | . . Attach 7 | 5 2 Detach . | . . Swap . | . . Drop . | . . Fire 20 | . 20 Melee . | . . Ram . | . . Kick . | . . Crush . | . . Escape Stasis . | . . Rewire . | . . Trap . | . . Miscellaneous . | . . Route ------- -11/Junkyard -10/Materials History --------- Turn | Location | Event 8 | -11/Junkyard | Discovered new exit (range 16) 82 | -11/Junkyard | Entered Materials 272 | -10/Materials | Core integrity fell below 50% 272 | -10/Materials | Core integrity fell below 20% 273 | -10/Materials | Destroyed by G-34 Mercenary with Small Laser Last Messages --------------- 00239_ Acquired 35 matter. 00239_ R-06 Scavenger collects Sml. Laser. 00240_ R-06 Scavenger collects Aluminum Leg. 00262_ K-01 Serf cleans the Fusion Modulator. 00264_ Assault Rifle destroyed. 00271_ Fusion Modulator explodes. 00271_ Destroyed Wheel. 00271_ M-13 Machinist destroyed. 00271_ Fusion Modulator explodes. 00271_ Destroyed Aluminum Leg. 00271_ G-47 Trooper destroyed. 00271_ G-34 Mercenary destroyed. 00271_ Fusion Modulator explodes. 00271_ Med. Laser destroyed. 00271_ Destroyed Med. Laser. 00271_ Destroyed Lgt. Ion Engine. 00271_ K-01 Serf destroyed. 00271_ Wheel destroyed. 00272_ K-01 Serf cleans the Nuclear Reactor. 00273_ Acquired 10 matter. Map ----- +----------------------------------------------------+ | ??????????????????????????????????????????????? | | ??????????????????????????????????????????????? | | ??????????????????????????????????????????????? | | ??????????????????????????????????????????????? | | ??????????????????????????????????????????????? | | ??????????????????????????????????????????????? | | ??????????????????????????????????????????????? | | ??????????????????????????????????????????????? | | ??????????????????????????????????????????????? | | ?????????????????? ??????????????????????????? | | ?????????????????? ??????????????????????????? | | ?????????????????? ??????#???????????????????? | | ?????????????????# #???? ????????????????????? | | ?????????????????# #???? ???????????????????? | | ?????????????????# #???? ????????????????????? | | ????????????????## #???? ?? ???????????????? | | ????????????????# #??? """k""???????????????? | | ????????????????# ??? """ """ ?????????????? | | ????????????????# #??? """ """ ?????????????? | | ????????????????# #### gg ???????????????? | | ??????########### ; ;;;;;;+#???????????????? | | ??????# ## ;;;;;;;;; #???????????????? | | ??????# ## ;; ; #???????????????? | | ??????# ## ; #???????????????? | | ??????# [|| ## #???????????????? | | ??????# [| ## @ #???????????????? | | ??????# | ## % % ;#??????????????? | | ??????# ## ! ??????????? | | ??????# % ## % k u?????????? | | ??????# % ## ?????????? | | ??????######+### #### ??????????? | | ????????# #???????????????? | | ????????# ; ;##???????????????? | | ????????# ; =;#????????????????? | | ?????#######+### ; ; ????????????????? | | ?????# #####;;;;;;;;;##???????????????? | | ?????# #??? ; ; #????????????????? | | ?????# """ #???""" # ;###????????????????? | | ?????# """"" #???""" + ??????????????????? | | ?????# """"" #?????? ? #???????????????????? | | ?????# """"" #?????? ??????????????????????? | | ??????? """ #??????????????????????????????? | | ????????? #??????????????????????????????? | | ??????????######??????????????????????????????? | | ??????????????????????????????????????????????? | | ??????????????????????????????????????????????? | | ??????????????????????????????????????????????? | | ??????????????????????????????????????????????? | | ??????????????????????????????????????????????? | | ??????????????????????????????????????????????? | +----------------------------------------------------+ Best States ------------- Heat Dissipation 25 Energy Generation 10 Energy Capacity 250 Matter Stores 300 Matter Capacity 300 Sight Range 16 Terrain Scan Density 10 Evasion (%) 50 Item Schematics ----------------- None Robot Schematics ------------------ None Fabricated ------------ Nothing Alien Tech Used ----------------- None Achievements -------------- None Challenges ------------ None Game ------ Seed MasterWardroneDissipator Manual? 0 Play Time 00:03:49 Cumulative 118.6 hours Start 2023.12.29 @ 19:17:50 End 2023.12.29 @ 19:20:07 Sessions 1 Manual Loads 0 Difficulty Rogue Special Mode None Game No. 115 Rogue 115 Adventurer 0 Explorer 0 Win Type - Total 0 Types 0/0/0/0/0/0/0/0/0 Lore% 35 Gallery% 41 Achievement% 30 Wizard Run 0 Options --------- ASCII 0 Keyboard 0 Movement Arrows Keybinds 0 Fullscreen 1 Font 18/SmallcapsGlow Map View 76x50 Tactical HUD 1 Map Filters NONE Filters NONE Steam 1 RUN: f534579d-fffb-4244-8451-18a154e34583